bitfinex-derivatives/quotes_SOLF0:USTF0_20250411
["timestamp","ask_amount","ask_price","bid_price","bid_amount"]
[1744364287990,0.05657591,118.35,118.34,8.4545]
[1744364288689,40.9,118.37,118.36,8.4537]
[1744364289090,40.92,118.39,118.33,0.05931756]
[1744364289389,40.92,118.39,118.37,8.4526]
[1744364289587,40.92,118.39,118.31,19.19887]
[1744364289786,40.92,118.39,118.38,8.4522]
[1744364289986,40.92,118.39,118.32,40.92]
[1744364290194,40.92,118.39,118.33,21.18961946]
[1744364290392,38.92,118.39,118.37,8.4529]
[1744364290588,669.02,118.41,118.33,8.62044885]
[1744364290788,0.05388292,118.39,118.38,8.4522]
[1744364290984,40.92,118.43,118.34,8.62044885]
[1744364291288,40.92,118.43,118.35,12.56482669]
[1744364291591,40.92,118.43,118.36,62.10527554]
[1744364291789,2.1299,118.46,118.37,12.56482669]
[1744364291984,710.04,118.47,118.4,0.05378583]
[1744364292195,0.06251904,118.43,118.4,0.05378583]
[1744364292397,0.06251904,118.43,118.42,8.4494]
[1744364293696,0.06251904,118.43,118.41,8.4497]
[1744364294002,0.06251904,118.43,118.4,62.05378583]
[1744364294693,40.04251904,118.43,118.4,0.05378583]
[1744364295095,48.49181904,118.43,118.4,0.05378583]
[1744364295395,40.04251904,118.43,118.4,0.05378583]
[1744364295599,48.49161904,118.43,118.4,0.05378583]
[1744364295998,48.49161904,118.43,118.4,8.50448583]
[1744364296698,40.04251904,118.43,118.41,12.6279768]
[1744364296998,40.04251904,118.43,118.4,0.05378583]
[1744364299498,8.4497,118.42,118.4,0.05378583]
[1744364299697,40.04251904,118.43,118.4,0.05378583]
[1744364300299,8.45,118.42,118.4,0.05378583]
[1744364300599,40.04251904,118.43,118.4,0.05378583]
[1744364300800,4.4625,118.42,118.4,0.05378583]
[1744364301002,8.4501,118.41,118.4,0.05378583]
[1744364301503,4.4625,118.42,118.4,0.05378583]
[1744364302013,4.4625,118.42,118.4,8.50438583]
[1744364302298,4.4625,118.42,118.4,0.05378583]
[1744364302489,12.9119,118.42,118.4,0.05378583]
[1744364302691,4.4625,118.42,118.4,0.05378583]
[1744364303192,40.04251904,118.43,118.41,12.65185105]
[1744364303388,40.04251904,118.43,118.4,0.05378583]
[1744364303594,40.04251904,118.43,118.42,8.4494]
[1744364303999,40.04251904,118.43,118.42,29.77997368]
[1744364305099,40.04251904,118.43,118.42,21.33057368]
[1744364305808,40.04251904,118.43,118.42,29.77997368]
[1744364308907,40.04251904,118.43,118.42,29.81430956]
[1744364309207,40.04251904,118.43,118.42,21.36490956]
[1744364309804,8.51121904,118.43,118.42,4.00690956]
[1744364310105,8.51121904,118.43,118.4,0.05378583]
[1744364310106,40.04251904,118.43,118.4,0.05378583]
[1744364310405,8.4501,118.41,118.4,0.05378583]
[1744364311202,8.451,118.4,118.37,8.4527]
[1744364311407,39.98,118.39,118.37,8.4527]
[1744364311705,39.98,118.39,118.36,11.207481]
[1744364312505,40.03873995,118.39,118.36,11.26589683]
[1744364312902,8.4529,118.37,118.36,11.26589683]
[1744364313208,8.4529,118.37,118.36,0.05841583]
[1744364314410,40.03873995,118.39,118.36,0.05841583]
[1744364314710,40.03873995,118.39,118.36,8.51191583]
[1744364314911,40.03873995,118.39,118.36,0.05841583]
[1744364315211,40.03873995,118.39,118.36,8.51201583]
[1744364315410,8.4529,118.37,118.36,0.05841583]
[1744364316007,8.4524,118.38,118.36,0.05841583]
[1744364316518,48.49063995,118.39,118.36,8.51171583]
[1744364319014,8.4523,118.38,118.36,8.51171583]
[1744364319814,8.4523,118.38,118.36,0.05841583]
[1744364320117,48.49063995,118.39,118.36,0.05841583]
[1744364320415,48.49063995,118.39,118.36,8.51171583]
[1744364320716,8.4523,118.38,118.36,8.51171583]
[1744364321517,48.49063995,118.39,118.36,8.51171583]
[1744364321914,48.49063995,118.39,118.37,12.56495718]
[1744364322112,48.49063995,118.39,118.37,8.57890874]
[1744364322419,48.49063995,118.39,118.36,8.51171583]
[1744364322615,48.49063995,118.39,118.37,3.98587324]
[1744364322818,48.49063995,118.39,118.36,8.51171583]
[1744364323015,48.49063995,118.39,118.37,12.56461463]
[1744364323214,48.49063995,118.39,118.37,8.57849695]
[1744364323519,40.03873995,118.39,118.37,17.03129695]
[1744364323719,40.03873995,118.39,118.37,8.4528]
[1744364324424,48.49033995,118.39,118.37,8.4528]
[1744364325123,8.4524,118.38,118.36,8.51181583]
[1744364325423,40.03873995,118.39,118.36,0.05841583]
[1744364326724,8.4529,118.37,118.36,0.05841583]
[1744364331126,673.8118,118.38,118.31,19.19887]
[1744364331334,699.2818,118.38,118.32,8.57750807]
[1744364331532,699.2818,118.38,118.32,1.80350807]
[1744364331533,8.4562,118.33,118.32,1.80350807]
[1744364331735,38.58,118.33,118.31,19.19887]
[1744364332132,38.58,118.33,118.31,19.25728873]
[1744364332437,8.4565,118.32,118.31,19.25728873]
[1744364335433,8.4591,118.29,118.24,2.1011]
[1744364335634,38.58,118.28,118.25,12.20478224]
[1744364335839,38.6,118.28,118.27,8.4601]
[1744364336238,38.6,118.28,118.24,2.1011]
[1744364336440,38.6,118.28,118.25,12.43887316]
[1744364336737,0.05864009,118.27,118.25,0.05424966]
[1744364337239,0.05864009,118.27,118.26,8.4607]
[1744364339941,38.6,118.28,118.27,8.4601]
[1744364341839,38.6,118.28,118.25,0.05424966]
[1744364342239,38.6,118.28,118.27,8.4601]
[1744364342843,38.6,118.28,118.25,0.05424966]
[1744364343546,47.0598,118.28,118.25,8.51544966]
[1744364345847,8.4601,118.27,118.25,8.51544966]
[1744364346149,38.6,118.28,118.25,8.51544966]
[1744364346347,47.0597,118.28,118.25,8.51544966]
[1744364346843,38.6,118.28,118.25,0.05424966]
[1744364347346,38.6,118.28,118.26,8.4605]
[1744364347943,38.6,118.28,118.25,8.51534966]
[1744364348146,38.6,118.28,118.25,0.05424966]
[1744364348545,38.6,118.28,118.25,8.51534966]
[1744364348752,47.0598,118.28,118.25,8.51534966]
[1744364348941,38.6,118.28,118.25,0.05424966]
[1744364349147,8.4603,118.27,118.25,0.05424966]
[1744364349348,38.6,118.28,118.25,0.05424966]
[1744364349645,47.0599,118.28,118.25,8.51544966]
[1744364350849,8.4601,118.27,118.25,8.51544966]
[1744364351050,38.6,118.28,118.25,0.05424966]
[1744364351449,8.4608,118.26,118.25,0.05424966]
[1744364351849,38.6,118.28,118.18,6.5039]
[1744364352042,38.6,118.28,118.23,8.4629]
[1744364352239,38.6,118.3,118.18,337.9071025]
[1744364352438,38.6,118.3,118.19,20.60197201]
[1744364352643,38.6,118.3,118.27,8.4597]
[1744364353149,38.65764256,118.3,118.28,8.4594]
[1744364355152,38.65764256,118.3,118.27,0.05526545]
[1744364356656,38.65764256,118.3,118.28,8.459]
[1744364361553,38.65764256,118.3,118.27,0.05526545]
[1744364361554,669.78,118.37,118.27,0.05526545]
[1744364361760,37.9,118.36,118.28,12.19194975]
[1744364362053,37.9,118.36,118.29,14.91734975]
[1744364362356,8.4549,118.35,118.32,8.4562]
[1744364362754,8.4551,118.34,118.32,8.51349152]
[1744364363057,0.06235081,118.35,118.32,0.05729152]
[1744364363359,8.51745081,118.35,118.32,8.51379152]
[1744364363855,0.06235081,118.35,118.32,0.05729152]
[1744364364158,0.06235081,118.35,118.33,3.97330649]
[1744364364354,707.68,118.37,118.32,0.05729152]
[1744364364554,716.1335,118.37,118.34,8.4547]
[1744364364960,707.68,118.37,118.32,0.05729152]
[1744364365148,707.68,118.37,118.34,8.4546]
[1744364365353,707.68,118.37,118.32,0.05729152]
[1744364365654,707.73733917,118.37,118.33,3.97501538]
[1744364365956,716.19033917,118.37,118.34,8.4545]
[1744364366761,707.73733917,118.37,118.35,8.4542]
[1744364366960,707.73733917,118.37,118.31,2.8439]
[1744364367259,707.73733917,118.37,118.35,0.06142532]
[1744364367659,707.73733917,118.37,118.35,8.51542532]
[1744364368561,16.8951,118.45,118.35,8.51542532]
[1744364368562,37.88,118.43,118.35,0.06142532]
[1744364368861,37.88,118.42,118.34,2.7148]
[1744364369060,37.88,118.41,118.35,3.97698492]
[1744364369259,46.3312,118.4,118.36,8.4529]
[1744364369462,37.88,118.39,118.34,2.7148]
[1744364369655,8.4524,118.38,118.37,0.06099252]
[1744364373262,8.4546,118.35,118.31,5.4577]
[1744364373463,37.88,118.35,118.32,3.9798492]
[1744364373764,37.88,118.35,118.29,2.6811]
[1744364373964,37.88,118.35,118.3,20.67085142]
[1744364374264,37.88,118.35,118.3,8.4599748]
[1744364374465,8.4561,118.33,118.31,0.06380933]
[1744364375069,8.51471285,118.34,118.31,8.52090933]
[1744364375369,8.51471285,118.34,118.31,0.06380933]
[1744364375570,0.05921285,118.34,118.32,8.4561]
[1744364377569,8.51451285,118.34,118.31,8.52060933]
[1744364377872,8.51451285,118.34,118.31,0.06380933]
[1744364378371,8.51451285,118.34,118.31,8.52070933]
[1744364378571,0.05921285,118.34,118.31,0.06380933]
[1744364381074,8.4561,118.33,118.31,0.06380933]
[1744364383075,8.4561,118.33,118.31,8.52100933]
[1744364383975,0.05921285,118.34,118.31,0.06380933]
[1744364384171,0.05921285,118.34,118.32,3.98342171]
[1744364384475,0.05921285,118.34,118.33,8.4558]
[1744364387878,0.05921285,118.34,118.32,8.4561]
[1744364388481,0.05921285,118.34,118.31,8.52070933]
[1744364388784,8.51461285,118.34,118.31,8.52070933]
[1744364389483,8.4558,118.33,118.31,0.06380933]
[1744364389683,36.8,118.32,118.31,0.06380933]
[1744364390077,45.2565,118.32,118.31,0.06380933]
[1744364390282,0.05921285,118.34,118.31,0.06380933]
[1744364391079,0.05921285,118.34,118.31,8.52070933]
[1744364391381,0.05921285,118.34,118.32,3.98708719]
[1744364391681,0.05921285,118.34,118.31,0.06380933]
[1744364391887,0.05921285,118.34,118.32,20.68236122]
[1744364392076,0.05921285,118.34,118.32,8.4561]
[1744364393184,0.05921285,118.34,118.31,8.52070933]
[1744364393380,0.05921285,118.34,118.32,3.98844628]
[1744364393576,8.51461285,118.34,118.32,8.47346196]
[1744364393888,0.05921285,118.34,118.31,0.06380933]
[1744364394083,0.05921285,118.34,118.32,3.98883599]
[1744364394279,8.4558,118.33,118.31,0.06380933]
[1744364394886,8.51461285,118.34,118.31,0.06380933]
[1744364395080,0.05921285,118.34,118.31,0.06380933]
[1744364395482,8.4565,118.32,118.31,0.06380933]
[1744364395679,8.4565,118.32,118.27,44.82992402]
[1744364395680,36.8,118.32,118.27,44.82992402]
[1744364395880,8.4584,118.3,118.28,3.99507637]
[1744364396191,36.8,118.29,118.27,44.82992402]
[1744364396382,45.2594,118.28,118.27,44.82992402]
[1744364396587,45.2594,118.28,118.27,48.82819382]
[1744364397087,45.2594,118.28,118.27,57.32187505]
[1744364397385,45.2594,118.28,118.27,12.49195103]
[1744364397989,45.2594,118.28,118.27,8.49368123]
[1744364398182,45.2594,118.28,118.26,11.27228313]
[1744364398589,8.4601,118.27,118.26,11.27228313]
[1744364400590,50.19498645,118.28,118.22,8.4636]
[1744364400797,56.85148645,118.28,118.23,3.99911635]
[1744364401089,8.4619,118.25,118.22,8.4635]
[1744364401292,36.8,118.24,118.2,13.39498645]
[1744364401498,36.8,118.24,118.22,13.39498645]
[1744364401692,36.8,118.24,118.23,8.4629]
[1744364401889,36.85779142,118.24,118.23,8.4629]
[1744364406003,36.82,118.27,118.25,8.4614]
[1744364406192,36.82,118.28,118.25,8.4614]
[1744364406695,36.82,118.28,118.23,5.7757]
[1744364406895,672.3605,118.33,118.26,13.39498645]
[1744364407087,706.38,118.33,118.28,13.39498645]
[1744364407287,0.06345571,118.31,118.28,13.4492069]
[1744364407493,0.06345571,118.31,118.3,21.85288645]
[1744364407693,0.06345571,118.31,118.3,34.09062515]
[1744364407992,36.82,118.33,118.31,8.4566]
[1744364408500,36.82,118.33,118.32,3.98959012]
[1744364408901,36.82,118.33,118.32,12.44609012]
[1744364409600,36.82,118.33,118.32,20.92157534]
[1744364410304,36.82,118.33,118.32,29.17216154]
[1744364410498,36.82,118.33,118.32,12.46507534]
[1744364410902,36.82,118.33,118.32,20.71521624]
[1744364411105,0.05491584,118.34,118.32,20.71521624]
[1744364411411,0.05491584,118.34,118.33,12.46507534]
[1744364411711,8.4523,118.38,118.33,20.71347039]
[1744364412010,36.82,118.37,118.34,3.98959012]
[1744364412311,36.82,118.37,118.32,13.39498645]
[1744364412515,36.82,118.37,118.33,12.23172361]
[1744364412704,36.82,118.37,118.34,3.98882562]
[1744364413009,0.05378748,118.36,118.35,12.44225019]
[1744364414111,0.05378748,118.36,118.35,8.4539]
[1744364414305,8.50788748,118.36,118.34,0.06239992]
[1744364414511,0.05378748,118.36,118.34,0.06239992]
[1744364414912,8.4544,118.35,118.34,0.06239992]
[1744364415412,0.05378748,118.36,118.34,0.06239992]
[1744364416006,8.50778748,118.36,118.34,0.06239992]
[1744364416702,0.05378748,118.36,118.34,0.06239992]
[1744364417211,0.05378748,118.36,118.35,12.44708979]
[1744364417711,0.05378748,118.36,118.35,20.6968282]
[1744364418107,0.05378748,118.36,118.35,29.17578241]
[1744364418413,0.05378748,118.36,118.35,12.471644]
[1744364418714,0.05378748,118.36,118.34,0.06239992]
[1744364419014,0.05378748,118.36,118.34,8.51729992]
[1744364419510,0.05378748,118.36,118.34,0.06239992]
[1744364420511,8.4544,118.35,118.34,0.06239992]
[1744364421214,8.4544,118.35,118.29,8.2212]
[1744364421215,13.39498645,118.35,118.29,8.2212]
[1744364421512,36.4,118.34,118.3,20.70938239]
[1744364421714,36.4,118.34,118.31,3.99538526]
[1744364421913,36.4,118.34,118.29,8.2212]
[1744364422101,44.8557,118.34,118.3,12.25190748]
[1744364422307,0.06060471,118.33,118.3,0.06069972]
[1744364422611,0.06060471,118.33,118.31,12.45269217]
[1744364422810,0.06060471,118.33,118.3,0.06069972]
[1744364423512,8.51670471,118.33,118.3,0.06069972]
[1744364423911,0.06060471,118.33,118.3,0.06069972]
[1744364424110,8.51670471,118.33,118.3,0.06069972]
[1744364424311,0.06060471,118.33,118.3,0.06069972]
[1744364425115,0.06060471,118.33,118.3,8.51849972]
[1744364425917,8.51700471,118.33,118.3,8.51849972]
[1744364427515,0.06060471,118.33,118.3,0.06069972]
[1744364428117,8.4572,118.31,118.3,0.06069972]
[1744364428410,44.8572,118.31,118.3,4.05723972]
[1744364428615,44.8572,118.31,118.3,0.06069972]
[1744364442920,36.4,118.31,118.3,0.06069972]
[1744364445721,44.8572,118.31,118.3,0.06069972]
[1744364446730,58.25218645,118.31,118.3,9.972e-05]
[1744364447329,8.4599,118.28,118.25,17.0474]
[1744364447626,35.4,118.27,118.26,20.76763392]
[1744364447930,43.8601,118.27,118.26,12.49983445]
[1744364448225,35.4,118.27,118.25,2.8644]
[1744364448419,35.4,118.27,118.22,24.60246745]
[1744364448615,35.4,118.27,118.25,0.05547561]
[1744364448616,8.4613,118.26,118.25,0.05547561]
[1744364448818,8.4613,118.26,118.25,4.05770868]
[1744364449027,8.4613,118.26,118.25,0.05547561]
[1744364449327,43.92025371,118.27,118.25,4.05718438]
[1744364449526,43.92025371,118.27,118.25,0.05547561]
[1744364449920,35.45985371,118.27,118.25,0.05547561]
[1744364450327,35.45985371,118.27,118.26,12.46104789]
[1744364450626,2.7946,118.33,118.26,12.2672134]
[1744364450627,35.4,118.29,118.26,12.2672134]
[1744364450831,43.8582,118.3,118.27,4.00024789]
[1744364451030,35.4,118.3,118.28,8.459]
[1744364451231,35.4,118.3,118.26,13.39498645]
[1744364451523,35.4,118.3,118.29,8.4587]
[1744364451827,35.4,118.3,118.29,20.95192352]
[1744364452024,0.05397768,118.31,118.3,8.4579]
[1744364452230,0.05397768,118.31,118.3,20.71854295]
[1744364452825,0.05397768,118.31,118.3,29.21218963]
[1744364453234,0.05397768,118.31,118.3,29.21145463]
[1744364453626,0.05397768,118.31,118.3,20.75355463]
[1744364453832,0.05397768,118.31,118.3,12.49322352]
[1744364454532,0.05397768,118.31,118.3,12.49126256]
[1744364455134,0.05397768,118.31,118.3,20.94916256]
[1744364455430,0.05397768,118.31,118.3,12.49126256]
[1744364455633,0.05397768,118.31,118.3,8.49364668]
[1744364455934,8.51117768,118.31,118.27,0.06348839]
[1744364456234,8.4587,118.29,118.28,12.26225254]
[1744364456532,43.8587,118.29,118.27,0.06348839]
[1744364457623,8.4594,118.28,118.27,0.06348839]
[1744364457822,35.4,118.29,118.27,25.72747391]
[1744364458031,0.05397768,118.31,118.29,8.4586]
[1744364458430,8.51117768,118.31,118.29,8.4586]
[1744364459635,43.91117768,118.31,118.28,8.459]
[1744364459836,43.91117768,118.31,118.29,4.00176774]
[1744364460035,43.91117768,118.31,118.28,8.459]
[1744364460229,43.91117768,118.31,118.29,4.00182458]
[1744364460429,43.91117768,118.31,118.28,8.459]
[1744364460633,43.91117768,118.31,118.29,12.50158654]
[1744364460833,43.91117768,118.31,118.29,8.50030784]
[1744364461034,13.39498645,118.3,118.27,0.06348839]
[1744364461237,13.39498645,118.28,118.27,0.06348839]
[1744364461430,48.79498645,118.28,118.27,0.06348839]
[1744364461838,57.25438645,118.28,118.27,0.06348839]
[1744364464138,57.25438645,118.28,118.27,8.839e-05]
[1744364465734,21.85438645,118.28,118.27,8.839e-05]
[1744364465938,57.25438645,118.28,118.27,8.839e-05]
[1744364469237,8.4618,118.25,118.22,8.4633]
[1744364469437,43.8618,118.25,118.23,4.00481871]
[1744364469633,43.8618,118.25,118.22,8.4633]
[1744364469833,43.8618,118.25,118.23,4.00490596]
[1744364470034,8.4629,118.23,118.2,24.69573]
[1744364470339,8.4629,118.23,118.2,16.23103]
[1744364470340,35.4,118.22,118.2,16.23103]
[1744364470536,8.4644,118.21,118.2,16.2903938]
[1744364473240,8.467,118.18,118.15,14.0792]
[1744364473541,35.4,118.17,118.13,11.207481]
[1744364473736,35.4,118.16,118.13,11.207481]
[1744364474045,35.4,118.16,118.14,8.469]
[1744364474435,35.46012291,118.16,118.14,8.53042322]
[1744364474840,43.92812291,118.16,118.14,8.53042322]
[1744364475040,35.46012291,118.16,118.14,0.06142322]
[1744364475432,43.92812291,118.16,118.15,12.55149204]
[1744364475638,43.92812291,118.16,118.15,8.53386734]
[1744364475838,43.92812291,118.16,118.15,6.734e-05]
[1744364476042,8.4687,118.15,118.14,0.06142322]
[1744364476238,21.86368645,118.15,118.14,0.06142322]
[1744364477548,21.86368645,118.15,118.14,2.322e-05]
[1744364478048,8.4715,118.12,118.09,25.061781]
[1744364478243,34.66,118.11,118.09,13.881881]
[1744364478448,43.1319,118.11,118.09,13.881881]
[1744364478949,43.19032735,118.11,118.09,11.27245145]
[1744364479339,34.71842735,118.11,118.09,0.06497045]
[1744364479840,43.19012735,118.11,118.09,0.06497045]
[1744364480547,34.71842735,118.11,118.09,0.06497045]
[1744364481240,0.05842735,118.11,118.09,0.06497045]
[1744364481446,5.2679,118.24,118.1,25.59783228]
[1744364481646,13.39498645,118.23,118.15,13.39498645]
[1744364481951,13.39498645,118.23,118.16,2.4695]
[1744364482352,21.85978645,118.21,118.17,8.4669]
[1744364482557,21.92312984,118.21,118.18,0.06418372]
[1744364483551,0.06334339,118.21,118.19,8.4656]
[1744364484856,0.06334339,118.21,118.18,8.53038372]
[1744364485061,13.45832984,118.21,118.18,0.06418372]
[1744364485350,8.4651,118.2,118.18,0.06418372]
[1744364485554,13.45832984,118.21,118.18,0.06418372]
[1744364486159,21.92322984,118.21,118.18,8.53058372]
[1744364486357,21.92322984,118.21,118.18,0.06418372]
[1744364486860,13.45832984,118.21,118.18,8.53028372]
[1744364488259,21.92272984,118.21,118.18,8.53028372]
[1744364488959,8.4653,118.2,118.18,0.06418372]
[1744364489860,13.45832984,118.21,118.18,0.06418372]
[1744364490559,8.4657,118.2,118.18,0.06418372]
[1744364490757,13.45832984,118.21,118.18,0.06418372]
[1744364493061,8.4656,118.2,118.18,0.06418372]
[1744364493260,13.45832984,118.21,118.18,0.06418372]
[1744364493658,8.52834339,118.21,118.18,8.53068372]
[1744364495366,8.52834339,118.21,118.18,0.06418372]
[1744364495367,8.4654,118.2,118.18,0.06418372]
[1744364495968,8.52804339,118.21,118.18,8.53048372]
[1744364497066,8.4652,118.2,118.18,0.06418372]
[1744364497268,0.06334339,118.21,118.18,0.06418372]
[1744364497560,8.52814339,118.21,118.18,8.53028372]
[1744364497769,0.06334339,118.21,118.18,0.06418372]
[1744364497968,8.52814339,118.21,118.18,8.53028372]
[1744364499768,8.4652,118.2,118.18,8.53028372]
[1744364500365,8.52804339,118.21,118.18,8.53028372]
[1744364500866,0.06334339,118.21,118.18,8.53028372]
[1744364501072,8.52814339,118.21,118.18,8.53028372]
[1744364501665,8.4651,118.2,118.18,8.53028372]
[1744364501862,0.06334339,118.21,118.18,8.53028372]
[1744364502568,0.06334339,118.21,118.18,0.06418372]
[1744364503166,8.4655,118.2,118.18,0.06418372]
[1744364503370,13.45832984,118.21,118.18,0.06418372]
[1744364503877,8.4658,118.19,118.18,0.06418372]
[1744364509572,42.9658,118.19,118.18,0.06418372]
[1744364511473,34.5,118.19,118.14,2.529]
[1744364511970,8.467,118.18,118.15,8.4685]
[1744364512365,8.467,118.18,118.14,2.529]
[1744364512564,8.467,118.18,118.15,12.36598068]
[1744364512565,8.52683759,118.18,118.15,12.36598068]
[1744364512865,8.52683759,118.18,118.15,0.06101507]
[1744364513075,8.52683759,118.18,118.15,8.52931507]
[1744364513276,8.52683759,118.18,118.15,0.06101507]
[1744364513464,0.05983759,118.18,118.15,0.06101507]
[1744364513878,34.5,118.23,118.16,25.70351829]
[1744364514174,8.4643,118.22,118.19,8.4654]
[1744364514971,8.5237232,118.22,118.19,8.5288422]
[1744364515168,8.4645,118.21,118.19,8.5288422]
[1744364515372,0.0594232,118.22,118.19,8.5288422]
[1744364515877,8.4648,118.21,118.19,0.0634422]
[1744364516772,0.0594232,118.22,118.19,0.0634422]
[1744364517178,8.4651,118.2,118.19,0.0634422]
[1744364517378,42.9651,118.2,118.19,0.0634422]
[1744364522779,0.0594232,118.22,118.19,4.07925665]
[1744364522980,0.0594232,118.22,118.19,0.0634422]
[1744364523380,0.0594232,118.22,118.19,8.64209882]
[1744364523581,0.0594232,118.22,118.2,8.4648]
[1744364525473,8.5231232,118.22,118.2,8.4648]
[1744364526184,8.5231232,118.22,118.21,4.02640034]
[1744364526984,0.0594232,118.22,118.21,12.49080034]
[1744364527285,0.0594232,118.22,118.21,20.81036704]
[1744364534189,0.0594232,118.22,118.21,20.79389809]
[1744364534889,0.0594232,118.22,118.21,12.32949809]
[1744364535086,34.5394232,118.22,118.19,0.0634422]
[1744364535281,8.4651,118.2,118.19,0.0634422]
[1744364535487,8.4651,118.2,118.19,4.08360714]
[1744364535993,8.4651,118.2,118.19,0.0634422]
[1744364537696,29.72843861,118.2,118.12,44.82992402]
[1744364537996,13.40483861,118.14,118.12,44.82992402]
[1744364538189,34.48,118.13,118.12,44.82992402]
[1744364538389,42.9501,118.13,118.12,44.82992402]
[1744364539189,42.9501,118.13,118.12,33.62244302]
[1744364539389,8.4708,118.12,118.11,44.8854206]
[1744364539589,13.40483861,118.11,118.1,134.21762244]
[1744364539789,21.87633861,118.11,118.1,134.21762244]
[1744364541195,8.4715,118.11,118.1,134.21762244]
[1744364543904,55.30093861,118.13,118.09,0.06007815]
[1744364544101,34.36,118.12,118.03,21.88183861]
[1744364544307,8.4756,118.06,118.03,8.477]
[1744364544510,34.36,118.06,118.03,8.477]
[1744364544707,47.76483861,118.06,117.97,13.40483861]
[1744364545005,8.4761,118.05,117.99,6.674]
[1744364545196,8.4761,118.05,118.01,8.4783]
[1744364545400,0.05633322,118.03,118.01,8.53931661]
[1744364545602,34.41633322,118.03,118.01,8.53931661]
[1744364546106,42.89373322,118.03,118.01,0.06101661]
[1744364546305,0.05633322,118.03,118.01,0.06101661]
[1744364546506,34.38,118.02,118.01,0.06101661]
[1744364547110,42.858,118.02,118.01,0.06101661]
[1744364549910,34.38,118.02,118.01,0.06101661]
[1744364550707,42.858,118.02,118.01,0.06101661]
[1744364550910,34.38,118.02,118.01,0.06101661]
[1744364552112,42.858,118.02,118.01,0.06101661]
[1744364553514,34.38,118.02,118.01,0.06101661]
[1744364553704,0.05633322,118.03,118.01,0.06101661]
[1744364553907,34.38,118.02,118.01,0.06101661]
[1744364556208,34.38,118.02,118.01,8.53971661]
[1744364566919,8.4755,118.06,118.01,0.06101661]
[1744364567222,34.4,118.05,118.01,13.46585522]
[1744364567525,670.6,118.07,118.01,13.46585522]
[1744364567724,34.4,118.06,118.02,2.227]
[1744364568024,34.4,118.06,118.05,8.4759]
[1744364570024,34.4,118.06,118.04,8.54093774]
[1744364570429,34.4,118.06,118.04,0.06463774]
[1744364571021,34.4,118.06,118.04,8.54083774]
[1744364571229,34.4,118.06,118.04,0.06463774]
[1744364572229,34.4,118.06,118.05,8.4759]
[1744364572428,34.4,118.06,118.04,0.06463774]
[1744364573337,8.4759,118.05,118.04,0.06463774]
[1744364577835,34.1,118.05,118.04,0.06463774]
[1744364579335,42.5759,118.05,118.04,0.06463774]
[1744364583445,51.18036805,118.05,118.04,0.06463774]
[1744364583644,42.70446805,118.05,117.99,8.60446805]
[1744364583844,8.60446805,118.03,118.0,3.84487668]
[1744364584045,34.1,118.02,118.01,3.84487668]
[1744364584344,42.578,118.02,117.99,8.4798]
[1744364584542,34.1,118.02,118.0,3.84495109]
[1744364584738,8.4787,118.01,118.0,0.06064359]
[1744364585042,8.4787,118.01,118.0,3.90637384]
[1744364585242,8.4787,118.01,118.0,0.06064359]
[1744364587145,8.4787,118.01,118.0,3.90885907]
[1744364587748,47.61692217,118.02,117.93,74.62892274]
[1744364588042,15.56622628,118.0,117.94,3.85030764]
[1744364588244,42.5805,117.99,117.96,8.482]
[1744364588546,34.1,117.99,117.97,3.85030764]
[1744364588843,34.1,117.99,117.93,61.17569646]
[1744364588844,0.05701263,117.98,117.96,0.05775545]
[1744364589033,0.05701263,117.98,117.97,3.85090841]
[1744364589445,13.51023891,117.98,117.96,0.05775545]
[1744364590348,8.4816,117.97,117.96,0.05775545]
[1744364591251,8.4839,117.94,117.91,4.4681]
[1744364591445,34.12,117.94,117.91,4.4681]
[1744364591642,34.12,117.94,117.91,12.9535]
[1744364591845,34.12,117.94,117.91,4.4681]
[1744364592440,34.18014571,117.94,117.91,4.52652092]
[1744364593151,34.18014571,117.94,117.92,8.4846]
[1744364593344,34.18014571,117.94,117.91,4.52652092]
[1744364593652,34.18014571,117.94,117.92,8.4849]
[1744364594547,34.18014571,117.94,117.91,4.52652092]
[1744364594953,34.18014571,117.94,117.91,17.9797472]
[1744364595142,34.18014571,117.94,117.92,8.4845]
[1744364595654,34.18014571,117.94,117.91,17.9797472]
[1744364598253,34.18014571,117.94,117.92,8.4848]
[1744364599548,34.18014571,117.94,117.91,10.75602092]
[1744364599748,34.18014571,117.94,117.91,2.27052092]